lending/lending_fUSD_20250425
["ID","MTS","AMOUNT","RATE_DAILY","PERIOD"]
[358924177,1745545849116,-887.54,0.00048767,30]
[358924178,1745545849169,-1248.48,0.00048767,30]
[358924179,1745545849219,-500.0,0.00048767,30]
[358924180,1745545849271,-1651.06,0.00048767,30]
[358924181,1745545849322,-2239.84,0.00048767,30]
[358924182,1745545849373,-500.0,0.00048767,30]
[358924183,1745545849424,-508.52,0.00048767,30]
[358924184,1745545849474,-500.0,0.00048767,30]
[358924185,1745545849525,-546.67594219,0.00048767,30]
[358924186,1745545849582,-864.33,0.00048767,30]
[358924187,1745545849633,-505.78,0.00048767,30]
[358924188,1745545849683,-632.89,0.00048767,30]
[358924189,1745545849732,-1001.68,0.00048767,30]
[358924190,1745545849784,-500.0,0.00048767,30]
[358924191,1745545849834,-500.0,0.00048767,30]
[358924192,1745545849884,-1483.77,0.00048767,30]
[358924193,1745545849935,-500.0,0.00048767,30]
[358924194,1745545849987,-1236.74,0.00048767,30]
[358924195,1745545850038,-547.04,0.00048767,30]
[358924196,1745545850092,-500.0,0.00048767,30]
[358924197,1745545850143,-500.0,0.00048767,30]
[358924198,1745545850194,-500.0,0.00048767,120]
[358924199,1745545850249,-551.27,0.00048767,30]
[358924200,1745545850301,-782.79,0.00048767,30]
[358924201,1745545850353,-500.0,0.00048767,30]
[358924202,1745545850401,-539.11263113,0.00048767,30]
[358924203,1745545850449,-500.0,0.00048767,30]
[358924204,1745545850497,-500.0,0.00048767,30]
[358924205,1745545850545,-500.0,0.00048767,30]
[358924206,1745545850595,-532.68286142,0.00048767,30]
[358924207,1745545850643,-1416.53,0.00048767,30]
[358924208,1745545850691,-500.0,0.00048767,30]
[358924209,1745545850741,-894.51,0.00048767,30]
[358924210,1745545850790,-500.0,0.00048767,30]
[358924211,1745545850841,-500.0,0.00048767,30]
[358924212,1745545850892,-1380.06,0.00048767,30]
[358924213,1745545850943,-500.0,0.00048767,30]
[358924214,1745545850993,-1109.29,0.00048767,30]
[358924215,1745545851042,-500.0,0.00048767,30]
[358924216,1745545851096,-982.48,0.00048767,30]
[358924217,1745545851148,-1800.8,0.00048767,30]
[358924218,1745545851198,-612.25,0.00048767,30]
[358924219,1745545851252,-884.99,0.00048767,30]
[358924220,1745545851302,-695.17,0.00048767,30]
[358924221,1745545851350,-665.85,0.00048767,30]
[358924222,1745545851398,-1088.74,0.00048767,30]
[358924223,1745545851448,-180.49652022,0.00048767,30]
[358924224,1745545851496,-734.7,0.00048767,30]
[358924225,1745545851544,-1916.97,0.00048767,30]
[358924226,1745545851592,-596.84,0.00048767,30]
[358924227,1745545851639,-509.35,0.00048767,30]
[358924228,1745545851687,-587.00123281,0.00048767,30]
[358924229,1745545851736,-585.39296553,0.00048767,30]
[358924230,1745545851785,-500.0,0.00048767,30]
[358924231,1745545851834,-2215.94,0.00048767,30]
[358924232,1745545851885,-556.38,0.00048767,30]
[358924233,1745545851933,-500.0,0.00048767,30]
[358924234,1745545851984,-697.76,0.00048767,30]
[358924235,1745545852034,-4287.81,0.00048767,30]
[358924236,1745545852085,-500.0,0.00048767,30]
[358924237,1745545852139,-682.59,0.00048767,30]
[358924238,1745545852190,-737.75,0.00048767,30]
[358924239,1745545852251,-515.03,0.00048767,30]
[358924240,1745545852303,-765.05,0.00048767,30]
[358924241,1745545852352,-1045.74,0.00048767,30]
[358924242,1745545852403,-500.0,0.00048767,30]
[358924243,1745545852452,-520.26,0.00048767,30]
[358924244,1745545852501,-500.0,0.00048767,30]
[358924245,1745545852551,-500.0,0.00048767,30]
[358924246,1745545852600,-500.0,0.00048767,30]
[358924247,1745545852805,-500.0,0.00048767,30]
[358924248,1745545852858,-500.0,0.00048767,30]
[358924249,1745545852910,-531.03891666,0.00048767,30]
[358924250,1745545852960,-682.45,0.00048767,30]
[358924251,1745545853009,-1909.5,0.00048767,30]
[358924252,1745545853058,-574.53,0.00048767,30]
[358924253,1745545853111,-500.0,0.00048767,30]
[358924254,1745545853162,-695.21,0.00048767,30]
[358924255,1745545853212,-500.0,0.00048767,30]
[358924256,1745545853262,-595.07,0.00048767,30]
[358924257,1745545853313,-500.0,0.00048767,30]
[358924258,1745545853363,-2006.28,0.00048767,30]
[358924259,1745545853414,-696.79,0.00048767,30]
[358924260,1745545853465,-1703.57,0.00048767,30]
[358924261,1745545853515,-536.68,0.00048767,30]
[358924262,1745545853566,-671.65,0.00048767,30]
[358924263,1745545853618,-661.83,0.00048767,30]
[358924264,1745545853671,-990.25,0.00048767,30]
[358924265,1745545853721,-500.0,0.00048767,30]
[358924266,1745545853771,-1139.46,0.00048767,30]
[358924267,1745545853822,-1291.84,0.00048767,30]
[358924268,1745545853874,-1491.54,0.00048767,30]
[358924269,1745545853926,-500.0,0.00048767,30]
[358924270,1745545853976,-500.0,0.00048767,30]
[358924271,1745545854027,-500.0,0.00048767,30]
[358924272,1745545854078,-1377.9,0.00048767,30]
[358924273,1745545854130,-1021.1,0.00048767,30]
[358924274,1745545854178,-500.0,0.00048767,30]
[358924275,1745545854228,-500.0,0.00048767,30]
[358924276,1745545854278,-944.01,0.00048767,30]
[358924277,1745545854327,-1148.56,0.00048767,30]
[358924278,1745545854376,-1758.33,0.00048767,30]
[358924279,1745545854427,-1342.47,0.00048767,30]
[358924280,1745545854476,-500.0,0.00048767,30]
[358924281,1745545854525,-780.33,0.00048767,30]
[358924282,1745545854574,-500.0,0.00048767,30]
[358924283,1745545854623,-602.51,0.00048767,30]
[358924284,1745545854672,-1899.46,0.00048767,30]
[358924285,1745545854719,-200.0,0.00049,88]
[358924286,1745545854768,-1269.73,0.00049041,30]
[358924287,1745545854817,-500.0,0.00049041,30]
[358924288,1745545854866,-1618.3,0.00049041,30]
[358924289,1745545854916,-500.0,0.00049041,30]
[358924290,1745545854967,-1638.07,0.00049041,30]
[358924291,1745545855017,-703.28,0.00049041,30]
[358924292,1745545855067,-1425.46,0.00049041,30]
[358924293,1745545855118,-638.66,0.00049041,30]
[358924294,1745545855170,-1729.94,0.00049041,30]
[358924295,1745545855219,-500.0,0.00049041,30]
[358924296,1745545855268,-500.0,0.00049041,30]
[358924297,1745545855317,-500.0,0.00049041,30]
[358924298,1745545855370,-561.61,0.00049041,30]
[358924299,1745545855429,-950.46,0.00049041,30]
[358924300,1745545855480,-500.0,0.00049041,30]
[358924301,1745545855529,-1212.18,0.00049041,30]
[358924302,1745545855580,-1343.3,0.00049041,30]
[358924303,1745545855629,-571.58,0.00049041,30]
[358924304,1745545855681,-855.98,0.00049041,30]
[358924305,1745545855732,-2120.78,0.00049041,30]
[358924306,1745545855784,-603.73,0.00049041,30]
[358924307,1745545855836,-556.54900804,0.00049041,30]
[358924308,1745545855888,-500.0,0.00049041,30]
[358924309,1745545855943,-500.0,0.00049041,30]
[358924310,1745545855994,-1895.22,0.00049041,30]
[358924311,1745545856044,-500.0,0.00049041,30]
[358924312,1745545856093,-593.06499736,0.00049041,30]
[358924313,1745545856142,-1806.09,0.00049041,30]
[358924314,1745545856190,-500.0,0.00049041,30]
[358924315,1745545856239,-530.66,0.00049041,30]
[358924316,1745545856286,-500.0,0.00049041,30]
[358924317,1745545856334,-1185.38,0.00049041,30]
[358924318,1745545856385,-500.0,0.00049041,30]
[358924319,1745545856435,-4344.84,0.00049041,30]
[358924320,1745545856486,-500.0,0.00049041,30]
[358924321,1745545856538,-1235.46,0.00049041,30]
[358924322,1745545856587,-211.33128908,0.00049041,30]
[358924323,1745545856636,-500.0,0.00049041,30]
[358924324,1745545856685,-500.0,0.00049041,30]
[358924325,1745545856733,-489.127853,0.00049041,30]
[358924326,1745545856781,-718.37,0.00049041,30]
[358924327,1745545856829,-500.0,0.00049041,30]
[358924328,1745545856877,-681.27,0.00049041,30]
[358924329,1745545856928,-547.91,0.00049041,30]
[358924330,1745545856977,-1064.4,0.00049041,30]
[358924331,1745545857026,-536.61,0.00049041,30]
[358924332,1745545857076,-300.0,0.00049041,30]
[358924333,1745545857125,-959.99,0.00049041,30]
[358924334,1745545857174,-956.25,0.00049041,30]
[358924335,1745545857222,-606.43,0.00049041,30]
[358924336,1745545857270,-4110.61,0.00049041,30]
[358924337,1745545857317,-755.51,0.00049041,30]
[358924338,1745545857365,-557.16,0.00049041,30]
[358924339,1745545857412,-500.0,0.00049041,30]
[358924340,1745545857460,-1699.47,0.00049041,30]
[358924341,1745545857509,-751.49,0.00049041,30]
[358924342,1745545857558,-500.0,0.00049041,30]
[358924343,1745545857606,-2518.36,0.00049041,30]
[358924344,1745545857652,-500.0,0.00049041,30]
[358924345,1745545857698,-500.0,0.00049041,30]
[358924346,1745545857744,-1672.29,0.00049041,30]
[358924347,1745545857790,-500.0,0.00049041,30]
[358924348,1745545857837,-1749.57,0.00049041,30]
[358924349,1745545857884,-500.0,0.00049041,30]
[358924350,1745545857933,-637.35,0.00049041,30]
[358924351,1745545858158,-500.0,0.00049041,30]
[358924352,1745545858246,-500.0,0.00049041,30]
[358924353,1745545858299,-1031.46,0.00049041,30]
[358924354,1745545858353,-1886.1,0.00049041,30]
[358924355,1745545858406,-1188.42,0.00049041,30]
[358924356,1745545858459,-500.0,0.00049041,30]
[358924357,1745545858511,-500.0,0.00049041,30]
[358924358,1745545858561,-519.46038154,0.00049041,30]
[358924359,1745545858611,-565.55,0.00049041,30]
[358924360,1745545858662,-500.0,0.00049041,30]
[358924361,1745545858711,-1760.17,0.00049041,30]
[358924362,1745545858760,-500.0,0.00049041,30]
[358924363,1745545858809,-500.0,0.00049041,30]
[358924364,1745545858858,-583.6,0.00049041,30]
[358924365,1745545858906,-1331.75,0.00049041,30]
[358924366,1745545858953,-259.7,0.00049041,30]
[358924367,1745545859001,-1291.79,0.00049041,30]
[358924368,1745545859048,-500.0,0.00049041,30]
[358924369,1745545859102,-1098.22,0.00049041,30]
[358924370,1745545859154,-7163.15,0.00049041,30]
[358924371,1745545859204,-887.54,0.00049041,30]
[358924372,1745545859254,-1248.48,0.00049041,30]
[358924373,1745545859304,-500.0,0.00049041,30]
[358924374,1745545859356,-1651.06,0.00049041,30]
[358924375,1745545859405,-500.0,0.00049041,30]
[358924376,1745545859454,-508.52,0.00049041,30]
[358924377,1745545859505,-500.0,0.00049041,30]
[358924378,1745545859555,-2239.84,0.00049041,30]
[358924379,1745545859602,-864.33,0.00049041,30]
[358924380,1745545859652,-505.78,0.00049041,30]
[358924381,1745545859703,-1001.68,0.00049041,30]
[358924382,1745545859754,-632.89,0.00049041,30]
[358924383,1745545859803,-500.0,0.00049041,30]
[358924384,1745545859854,-500.0,0.00049041,30]
[358924385,1745545859906,-1483.77,0.00049041,30]
[358924386,1745545859957,-500.0,0.00049041,30]
[358924387,1745545860010,-1236.74,0.00049041,30]
[358924388,1745545860071,-547.04,0.00049041,30]
[358924389,1745545860129,-500.0,0.00049041,30]
[358924390,1745545860183,-500.0,0.00049041,30]
[358924391,1745545860237,-500.0,0.00049041,120]
[358924392,1745545860289,-551.27,0.00049041,30]
[358924393,1745545860340,-782.79,0.00049041,30]
[358924394,1745545860393,-500.0,0.00049041,30]
[358924395,1745545860443,-500.0,0.00049041,30]
[358924396,1745545860494,-500.0,0.00049041,30]
[358924397,1745545860548,-500.0,0.00049041,30]
[358924398,1745545860603,-1416.53,0.00049041,30]
[358924399,1745545860658,-500.0,0.00049041,30]
[358924400,1745545860710,-894.51,0.00049041,30]
[358924401,1745545860763,-500.0,0.00049041,30]
[358924402,1745545860816,-500.0,0.00049041,30]
[358924403,1745545860868,-1380.06,0.00049041,30]
[358924404,1745545860920,-1109.29,0.00049041,30]
[358924405,1745545860970,-500.0,0.00049041,30]
[358924406,1745545861023,-500.0,0.00049041,30]
[358924407,1745545861070,-982.48,0.00049041,30]
[358924408,1745545861122,-1800.8,0.00049041,30]
[358924409,1745545861168,-612.25,0.00049041,30]
[358924410,1745545861216,-884.99,0.00049041,30]
[358924411,1745545861264,-695.17,0.00049041,30]
[358924412,1745545861312,-665.85,0.00049041,30]
[358924413,1745545861361,-1088.74,0.00049041,30]
[358924414,1745545861414,-734.7,0.00049041,30]
[358924415,1745545861465,-1916.97,0.00049041,30]
[358924416,1745545861513,-596.84,0.00049041,30]
[358924417,1745545861561,-509.35,0.00049041,30]
[358924418,1745545861608,-500.0,0.00049041,30]
[358924419,1745545861657,-2215.94,0.00049041,30]
[358924420,1745545861705,-556.38,0.00049041,30]
[358924421,1745545861755,-500.0,0.00049041,30]
[358924422,1745545861805,-697.76,0.00049041,30]
[358924423,1745545861856,-4287.81,0.00049041,30]
[358924424,1745545861906,-500.0,0.00049041,30]
[358924425,1745545861955,-682.59,0.00049041,30]
[358924426,1745545862016,-737.75,0.00049041,30]
[358924427,1745545862066,-515.03,0.00049041,30]
[358924428,1745545862121,-765.05,0.00049041,30]
[358924429,1745545862169,-1045.74,0.00049041,30]
[358924430,1745545862218,-500.0,0.00049041,30]
[358924431,1745545862267,-520.26,0.00049041,30]
[358924432,1745545862316,-615.64977057,0.00049041,30]
[358924433,1745545862364,-500.0,0.00049041,30]
[358924434,1745545862413,-500.0,0.00049041,30]
[358924435,1745545862461,-564.19092374,0.00049041,30]
[358924436,1745545862509,-500.0,0.00049041,30]
[358924437,1745545862558,-682.45,0.00049041,30]
[358924438,1745545862608,-1909.5,0.00049041,30]
[358924439,1745545862658,-574.53,0.00049041,30]
[358924440,1745545862706,-500.0,0.00049041,30]
[358924441,1745545862754,-695.21,0.00049041,30]
[358924442,1745545862803,-500.0,0.00049041,30]
[358924443,1745545862851,-595.07,0.00049041,30]
[358924444,1745545862901,-178.01680733,0.00049041,30]
[358924445,1745545862956,-2006.28,0.00049041,30]
[358924446,1745545863008,-1703.57,0.00049041,30]
[358924447,1745545863061,-696.79,0.00049041,30]
[358924448,1745545863113,-536.68,0.00049041,30]
[358924449,1745545863164,-671.65,0.00049041,30]
[358924450,1745545863220,-661.83,0.00049041,30]
[358924451,1745545863273,-990.25,0.00049041,30]
[358924452,1745545863324,-500.0,0.00049041,30]
[358924453,1745545863381,-1139.46,0.00049041,30]
[358924454,1745545863436,-1291.84,0.00049041,30]
[358924455,1745545863489,-1491.54,0.00049041,30]
[358924456,1745545863838,-500.0,0.00049041,30]
[358924457,1745545863893,-500.0,0.00049041,30]
[358924458,1745545863950,-500.0,0.00049041,30]
[358924459,1745545864005,-1377.9,0.00049041,30]
[358924460,1745545864060,-1021.1,0.00049041,30]
[358924461,1745545864114,-500.0,0.00049041,30]
[358924462,1745545864168,-500.0,0.00049041,30]
[358924463,1745545864221,-944.01,0.00049041,30]
[358924464,1745545864273,-1148.56,0.00049041,30]
[358924465,1745545864324,-1758.33,0.00049041,30]
[358924466,1745545864376,-1342.47,0.00049041,30]
[358924467,1745545864427,-500.0,0.00049041,30]
[358924468,1745545864479,-780.33,0.00049041,30]
[358924469,1745545864530,-500.0,0.00049041,30]
[358924470,1745545864580,-602.51,0.00049041,30]
[358924471,1745545864633,-576.95,0.00049315,30]
[358924472,1745545864684,-500.0,0.00049315,30]
[358924473,1745545864735,-500.0,0.00049315,30]
[358924474,1745545864786,-500.0,0.00049315,30]
[358924475,1745545864838,-500.0,0.00049315,30]
[358924476,1745545864889,-500.0,0.00049315,30]
[358924477,1745545864941,-982.6,0.00049315,30]
[358924478,1745545864993,-730.82,0.00049315,30]
[358924479,1745545865044,-1137.61,0.00049315,30]
[358924480,1745545865096,-500.0,0.00049315,30]
[358924481,1745545865148,-1311.98,0.00049315,30]
[358924482,1745545865200,-500.0,0.00049315,30]
[358924483,1745545865252,-516.57765654,0.00049315,30]
[358924484,1745545865303,-500.0,0.00049315,30]
[358924485,1745545865354,-500.0,0.00049315,30]
[358924486,1745545865405,-500.0,0.00049315,30]
[358924487,1745545865455,-500.0,0.00049315,30]
[358924488,1745545865505,-1055.72,0.00049315,30]
[358924489,1745545865554,-500.0,0.00049315,30]
[358924490,1745545865603,-500.0,0.00049315,30]
[358924491,1745545865654,-500.0,0.00049315,30]
[358924492,1745545865705,-1396.8,0.00049315,30]
[358924493,1745545865756,-503.83,0.00049315,30]
[358924494,1745545865808,-500.0,0.00049315,30]
[358924495,1745545865861,-500.0,0.00049315,30]
[358924496,1745545865914,-871.91,0.00049315,30]
[358924497,1745545865967,-500.0,0.00049315,30]
[358924498,1745545866025,-500.0,0.00049315,30]
[358924499,1745545866076,-1269.73,0.00049315,30]
[358924500,1745545866131,-500.0,0.00049315,30]
[358924501,1745545866184,-1618.3,0.00049315,30]
[358924502,1745545866236,-500.0,0.00049315,30]
[358924503,1745545866289,-1638.07,0.00049315,30]
[358924504,1745545866343,-703.28,0.00049315,30]
[358924505,1745545866397,-1425.46,0.00049315,30]
[358924506,1745545866447,-638.66,0.00049315,30]
[358924507,1745545866500,-1729.94,0.00049315,30]
[358924508,1745545866552,-500.0,0.00049315,30]
[358924509,1745545866604,-500.0,0.00049315,30]
[358924510,1745545866657,-561.61,0.00049315,30]
[358924511,1745545866708,-950.46,0.00049315,30]
[358924512,1745545866758,-500.0,0.00049315,30]
[358924513,1745545866809,-1212.18,0.00049315,30]
[358924514,1745545866861,-1343.3,0.00049315,30]
[358924515,1745545866913,-571.58,0.00049315,30]
[358924516,1745545866965,-855.98,0.00049315,30]
[358924517,1745545867015,-2120.78,0.00049315,30]
[358924518,1745545867066,-603.73,0.00049315,30]
[358924519,1745545867120,-500.0,0.00049315,30]
[358924520,1745545867170,-500.0,0.00049315,30]
[358924521,1745545867219,-1895.22,0.00049315,30]
[358924522,1745545867270,-500.0,0.00049315,30]
[358924523,1745545867322,-1806.09,0.00049315,30]
[358924524,1745545867372,-500.0,0.00049315,30]
[358924525,1745545867423,-530.66,0.00049315,30]
[358924526,1745545867476,-500.0,0.00049315,30]
[358924527,1745545867528,-1185.38,0.00049315,30]
[358924528,1745545867580,-500.0,0.00049315,30]
[358924529,1745545867633,-4344.84,0.00049315,30]
[358924530,1745545867687,-500.0,0.00049315,30]
[358924531,1745545867738,-1235.46,0.00049315,30]
[358924532,1745545867789,-500.0,0.00049315,30]
[358924533,1745545867841,-500.0,0.00049315,30]
[358924534,1745545867893,-718.37,0.00049315,30]
[358924535,1745545867945,-500.0,0.00049315,30]
[358924536,1745545867996,-681.27,0.00049315,30]
[358924537,1745545868047,-547.91,0.00049315,30]
[358924538,1745545868098,-1064.4,0.00049315,30]
[358924539,1745545868147,-536.61,0.00049315,30]
[358924540,1745545868196,-300.0,0.00049315,30]
[358924541,1745545868243,-959.99,0.00049315,30]
[358924542,1745545868294,-956.25,0.00049315,30]
[358924543,1745545868349,-606.43,0.00049315,30]
[358924544,1745545868403,-4110.61,0.00049315,30]
[358924545,1745545868458,-755.51,0.00049315,30]
[358924546,1745545868509,-557.16,0.00049315,30]
[358924547,1745545868561,-500.0,0.00049315,30]
[358924548,1745545868612,-1699.47,0.00049315,30]
[358924549,1745545868661,-751.49,0.00049315,30]
[358924550,1745545868713,-500.0,0.00049315,30]
[358924551,1745545868764,-2518.36,0.00049315,30]
[358924552,1745545868816,-377.06349639,0.00049315,30]
[358924553,1745545868867,-500.0,0.00049315,30]
[358924554,1745545868918,-1672.29,0.00049315,30]
[358924555,1745545868967,-500.0,0.00049315,30]
[358924556,1745545869016,-1749.57,0.00049315,30]
[358924557,1745545869070,-500.0,0.00049315,30]
[358924558,1745545869125,-637.35,0.00049315,30]
[358924559,1745545869174,-500.0,0.00049315,30]
[358924560,1745545869225,-500.0,0.00049315,30]
[358924561,1745545869471,-1031.46,0.00049315,30]
[358924562,1745545869523,-1886.1,0.00049315,30]
[358924563,1745545869575,-1188.42,0.00049315,30]
[358924564,1745545869627,-184.48195528,0.00049315,30]
[358924565,1745545869677,-500.0,0.00049315,30]
[358924566,1745545869727,-565.55,0.00049315,30]
[358924567,1745545869776,-453.36,0.00049315,30]
[358924568,1745545869826,-1760.17,0.00049315,30]
[358924569,1745545869877,-500.0,0.00049315,30]
[358924570,1745545869927,-500.0,0.00049315,30]
[358924571,1745545869979,-583.6,0.00049315,30]
[358924572,1745545870030,-1331.75,0.00049315,30]
[358924573,1745545870082,-259.7,0.00049315,30]
[358924574,1745545870138,-1291.79,0.00049315,30]
[358924575,1745545870191,-500.0,0.00049315,30]
[358924576,1745545870243,-1098.22,0.00049315,30]
[358924577,1745545870294,-7163.15,0.00049315,30]
[358924578,1745545870345,-887.54,0.00049315,30]
[358924579,1745545870396,-1248.48,0.00049315,30]
[358924580,1745545870448,-500.0,0.00049315,30]
[358924581,1745545870499,-1651.06,0.00049315,30]
[358924582,1745545870550,-528.28620891,0.00049315,30]
[358924583,1745545870601,-508.52,0.00049315,30]
[358924584,1745545870657,-315.30540436,0.00049315,30]
[358924585,1745545870711,-2239.84,0.00049315,30]
[358924586,1745545870763,-864.33,0.00049315,30]
[358924587,1745545870817,-505.78,0.00049315,30]
[358924588,1745545870867,-632.89,0.00049315,30]
[358924589,1745545870919,-1001.68,0.00049315,30]
[358924590,1745545870970,-199.68117181,0.00049315,30]
[358924591,1745545871020,-500.0,0.00049315,30]
[358924592,1745545871071,-1483.77,0.00049315,30]
[358924593,1745545871122,-500.0,0.00049315,30]
[358924594,1745545871174,-1236.74,0.00049315,30]
[358924595,1745545871224,-547.04,0.00049315,30]
[358924596,1745545871272,-500.0,0.00049315,30]
[358924597,1745545871320,-500.0,0.00049315,30]
[358924598,1745545871370,-500.0,0.00049315,120]
[358924599,1745545871423,-551.27,0.00049315,30]
[358924600,1745545871475,-782.79,0.00049315,30]
[358924601,1745545871526,-500.0,0.00049315,30]
[358924602,1745545871576,-500.0,0.00049315,30]
[358924603,1745545871624,-500.0,0.00049315,30]
[358924604,1745545871675,-500.0,0.00049315,30]
[358924605,1745545871724,-1416.53,0.00049315,30]
[358924606,1745545871772,-500.0,0.00049315,30]
[358924607,1745545871822,-894.51,0.00049315,30]
[358924608,1745545871871,-500.0,0.00049315,30]
[358924609,1745545871922,-500.0,0.00049315,30]
[358924610,1745545871971,-1380.06,0.00049315,30]
[358924611,1745545872019,-1109.29,0.00049315,30]
[358924612,1745545872069,-294.79896837,0.00049315,30]
[358924613,1745545872122,-500.0,0.00049315,30]
[358924614,1745545872172,-982.48,0.00049315,30]
[358924615,1745545872222,-1800.8,0.00049315,30]
[358924616,1745545872271,-612.25,0.00049315,30]
[358924617,1745545872319,-884.99,0.00049315,30]
[358924618,1745545872368,-695.17,0.00049315,30]
[358924619,1745545872416,-665.85,0.00049315,30]
[358924620,1745545872464,-1088.74,0.00049315,30]
[358924621,1745545872513,-734.7,0.00049315,30]
[358924622,1745545872561,-1916.97,0.00049315,30]
[358924623,1745545872610,-596.84,0.00049315,30]
[358924624,1745545872658,-509.35,0.00049315,30]
[358924625,1745545872708,-500.0,0.00049315,30]
[358924626,1745545872757,-2215.94,0.00049315,30]
[358924627,1745545872804,-556.38,0.00049315,30]
[358924628,1745545872853,-500.0,0.00049315,30]
[358924629,1745545872902,-697.76,0.00049315,30]
[358924630,1745545872951,-4287.81,0.00049315,30]
[358924631,1745545872999,-579.29094627,0.00049315,30]
[358924632,1745545873047,-682.59,0.00049315,30]
[358924633,1745545873097,-1995.83,0.00049315,120]
[358924634,1745545873147,-737.75,0.00049315,30]
[358924635,1745545873196,-515.03,0.00049315,30]
[358924636,1745545873246,-765.05,0.00049315,30]
[358924637,1745545873294,-1045.74,0.00049315,30]
[358924638,1745545873343,-500.0,0.00049315,30]
[358924639,1745545873392,-520.26,0.00049315,30]
[358924640,1745545873442,-500.0,0.00049315,30]
[358924641,1745545873491,-500.0,0.00049315,30]
[358924642,1745545873541,-500.0,0.00049315,30]
[358924643,1745545873592,-682.45,0.00049315,30]
[358924644,1745545873645,-1909.5,0.00049315,30]
[358924645,1745545873695,-574.53,0.00049315,30]
[358924646,1745545873746,-500.0,0.00049315,30]
[358924647,1745545873797,-695.21,0.00049315,30]
[358924648,1745545873849,-500.0,0.00049315,30]
[358924649,1745545873903,-595.07,0.00049315,30]
[358924650,1745545873955,-2006.28,0.00049315,30]
[358924651,1745545874007,-1703.57,0.00049315,30]
[358924652,1745545874058,-696.79,0.00049315,30]
[358924653,1745545874110,-536.68,0.00049315,30]
[358924654,1745545874163,-671.65,0.00049315,30]
[358924655,1745545874216,-661.83,0.00049315,30]
[358924656,1745545874267,-990.25,0.00049315,30]
[358924657,1745545874319,-500.0,0.00049315,30]
[358924658,1745545874369,-1139.46,0.00049315,30]
[358924659,1745545874421,-1291.84,0.00049315,30]
[358924660,1745545874473,-1491.54,0.00049315,30]
[358924661,1745545874523,-500.0,0.00049315,30]
[358924662,1745545874573,-500.0,0.00049315,30]
[358924663,1745545874623,-500.0,0.00049315,30]
[358924664,1745545874672,-1377.9,0.00049315,30]
[358924665,1745545874887,-1021.1,0.00049315,30]
[358924666,1745545874939,-500.0,0.00049315,30]
[358924667,1745545874992,-500.0,0.00049315,30]
[358924668,1745545875046,-944.01,0.00049315,30]
[358924669,1745545875099,-1148.56,0.00049315,30]
[358924670,1745545875153,-1758.33,0.00049315,30]
[358924671,1745545875205,-1342.47,0.00049315,30]
[358924672,1745545875258,-500.0,0.00049315,30]
[358924673,1745545875312,-780.33,0.00049315,30]
[358924674,1745545875363,-500.0,0.00049315,30]
[358924675,1745545875414,-457.92050452,0.00049315,120]
[358924676,1745545875468,-576.95,0.00049589,30]